fUSD/lending_fUSD_20241221
["ID","MTS","AMOUNT","RATE_DAILY","PERIOD"]
[346143865,1734744646367,-3059.58,0.00023995,4]
[346143866,1734744646377,-3059.58,0.00023995,4]
[346143867,1734744646386,-500.0,0.00023995,4]
[346143868,1734744646395,-500.0,0.00023995,4]
[346143869,1734744646405,-500.0,0.00023995,4]
[346143870,1734744646414,-500.0,0.00023995,4]
[346143871,1734744646423,-500.0,0.00023995,4]
[346143872,1734744646433,-500.0,0.00023995,4]
[346143873,1734744646442,-500.0,0.00023995,4]
[346143874,1734744646455,-500.0,0.00023995,4]
[346143875,1734744646464,-500.0,0.00023995,4]
[346143876,1734744646474,-500.0,0.00023995,4]
[346143877,1734744646484,-500.0,0.00023995,4]
[346143878,1734744646493,-500.0,0.00023995,4]
[346143879,1734744646506,-500.0,0.00023995,4]
[346143880,1734744646518,-500.0,0.00023995,4]
[346143881,1734744646527,-500.0,0.00023995,4]
[346143882,1734744646537,-500.0,0.00023995,4]
[346143883,1734744646549,-500.0,0.00023995,4]
[346143884,1734744646559,-593.34217395,0.00023995,4]
[346143885,1734744646569,-921.22,0.00023995,4]
[346143886,1734744646578,-921.22,0.00023995,4]
[346143887,1734744646587,-921.22,0.00023995,4]
[346143888,1734744646596,-921.22,0.00023995,4]
[346143889,1734744646605,-921.22,0.00023995,4]
[346143890,1734744646615,-921.22,0.00023995,4]
[346143891,1734744646624,-921.22,0.00023995,4]
[346143892,1734744646633,-921.22,0.00023995,4]
[346143893,1734744646642,-921.22,0.00023995,4]
[346143894,1734744646651,-500.0,0.00023995,4]
[346143895,1734744646661,-170.81702018,0.00023995,4]
[346143896,1734744646669,-196.55,0.00023995,4]
[346143897,1734744646678,-500.0,0.00023995,4]
[346143898,1734744646687,-500.0,0.00023995,4]
[346143899,1734744646696,-500.0,0.00023995,4]
[346143900,1734744646706,-500.0,0.00023995,4]
[346143901,1734744646715,-500.0,0.00023995,4]
[346143902,1734744646723,-500.0,0.00023995,4]
[346143903,1734744646733,-500.0,0.00023995,4]
[346143904,1734744646742,-500.0,0.00023995,4]
[346143905,1734744646753,-500.0,0.00023995,4]
[346143906,1734744646762,-500.0,0.00023995,4]
[346143907,1734744646773,-500.0,0.00023995,4]
[346143908,1734744646783,-500.0,0.00023995,4]
[346143909,1734744646792,-500.0,0.00023995,4]
[346143910,1734744646801,-500.0,0.00023995,4]
[346143911,1734744646810,-500.0,0.00023995,4]
[346143912,1734744646819,-500.0,0.00023995,4]
[346143913,1734744646828,-500.0,0.00023995,4]
[346143914,1734744646837,-500.0,0.00023995,4]
[346143915,1734744646846,-500.0,0.00023995,4]
[346143916,1734744646855,-500.0,0.00023995,4]
[346143917,1734744646864,-500.0,0.00023995,4]
[346143918,1734744646874,-559.78700674,0.00023995,4]
[346143919,1734744646883,-518.48279102,0.00023995,4]
[346143920,1734744646892,-1052.0,0.00023995,2]
[346143921,1734744646902,-1483431.73283028,0.00023996,2]
[346143922,1734744646912,-800.26126428,0.00023998,2]
[346143923,1734744646922,-544.57,0.00023998,4]
[346143924,1734744646931,-544.57,0.00023998,4]
[346143925,1734744646941,-544.57,0.00023998,4]
[346143926,1734744646950,-544.57,0.00023998,4]
[346143927,1734744646960,-544.69,0.00023998,4]
[346143928,1734744646969,-672.85,0.00023998,4]
[346143929,1734744646979,-672.85,0.00023998,4]
[346143930,1734744646988,-672.85,0.00023998,4]
[346143931,1734744646998,-672.85,0.00023998,4]
[346143932,1734744647007,-672.87430164,0.00023998,4]
[346143933,1734744647016,-711.4,0.00023998,4]
[346143934,1734744647026,-711.4,0.00023998,4]
[346143935,1734744647035,-711.4,0.00023998,4]
[346143936,1734744647044,-711.4,0.00023998,4]
[346143937,1734744647054,-711.63,0.00023998,4]
[346143938,1734744647063,-1211.32,0.00023998,4]
[346143939,1734744647072,-1211.32,0.00023998,4]
[346143940,1734744647084,-1211.32,0.00023998,4]
[346143941,1734744647093,-1211.32,0.00023998,4]
[346143942,1734744647102,-1211.43193226,0.00023998,4]
[346143943,1734744647111,-3059.58,0.00023998,4]
[346143944,1734744647120,-3059.58,0.00023998,4]
[346143945,1734744647130,-3059.58,0.00023998,4]
[346143946,1734744647139,-3059.58,0.00023998,4]
[346143947,1734744647150,-3059.67019554,0.00023998,4]
[346143948,1734744647162,-666.0,0.00023999,2]
[346143949,1734744647172,-666.0,0.00023999,2]
[346143950,1734744647181,-666.0,0.00023999,2]
[346143951,1734744647190,-666.0,0.00023999,2]
[346143952,1734744647199,-1491.65,0.00023999,4]
[346143953,1734744647209,-1491.65,0.00023999,4]
[346143954,1734744647218,-1491.65,0.00023999,4]
[346143955,1734744647227,-1491.65,0.00023999,4]
[346143956,1734744647237,-1491.65,0.00023999,4]
[346143957,1734744647246,-1491.65,0.00023999,4]
[346143958,1734744647257,-1491.65,0.00023999,4]
[346143959,1734744647267,-1491.65,0.00023999,4]
[346143960,1734744647276,-1491.65,0.00023999,4]
[346143961,1734744647286,-1491.65,0.00023999,4]
[346143962,1734744647295,-1491.65,0.00023999,4]
[346143963,1734744647304,-1491.65,0.00023999,4]
[346143964,1734744647313,-1491.65,0.00023999,4]
[346143965,1734744647323,-1491.71432563,0.00023999,4]
[346143966,1734744647332,-623.67,0.00023999,4]
[346143967,1734744647343,-623.67,0.00023999,4]
[346143968,1734744647352,-623.67,0.00023999,4]
[346143969,1734744647362,-623.67,0.00023999,4]
[346143970,1734744647372,-623.67,0.00023999,4]
[346143971,1734744647381,-623.67,0.00023999,4]
[346143972,1734744647390,-623.67,0.00023999,4]
[346143973,1734744647399,-623.67,0.00023999,4]
[346143974,1734744647408,-623.67,0.00023999,4]
[346143975,1734744647418,-623.67,0.00023999,4]
[346143976,1734744647427,-623.67,0.00023999,4]
[346143977,1734744647436,-623.67,0.00023999,4]
[346143978,1734744647445,-623.76323933,0.00023999,4]
[346143979,1734744647456,-500.0,0.00023999,4]
[346143980,1734744647465,-500.0,0.00023999,4]
[346143981,1734744647475,-500.0,0.00023999,4]
[346143982,1734744647484,-500.0,0.00023999,4]
[346143983,1734744647493,-500.0,0.00023999,4]
[346143984,1734744647504,-500.0,0.00023999,4]
[346143985,1734744647514,-500.0,0.00023999,4]
[346143986,1734744647524,-500.0,0.00023999,4]
[346143987,1734744647535,-500.0,0.00023999,4]
[346143988,1734744647544,-500.0,0.00023999,4]
[346143989,1734744647554,-500.0,0.00023999,4]
[346143990,1734744647563,-504.62,0.00023999,4]
[346143991,1734744647572,-500.0,0.00023999,4]
[346143992,1734744647581,-500.0,0.00023999,4]
[346143993,1734744647591,-439.48132057,0.00023999,4]
[346143994,1734744647600,-2486.79,0.00023999,4]
[346143995,1734744647610,-2486.79,0.00023999,4]
[346143996,1734744647619,-2486.79,0.00023999,4]
[346143997,1734744647628,-2486.79,0.00023999,4]
[346143998,1734744647637,-2486.79,0.00023999,4]
[346143999,1734744647647,-2486.79,0.00023999,4]
[346144000,1734744647656,-164.683369,0.00023999,4]
[346144001,1734744647665,-2486.79,0.00023999,4]
[346144002,1734744647674,-2486.79,0.00023999,4]
[346144003,1734744647683,-2486.79,0.00023999,4]
[346144004,1734744647692,-2486.79,0.00023999,4]
[346144005,1734744647701,-2486.79,0.00023999,4]
[346144006,1734744647711,-2486.79,0.00023999,4]
[346144007,1734744647720,-2486.79,0.00023999,4]
[346144008,1734744647729,-2486.87910627,0.00023999,4]
[346144009,1734744647738,-1908.27,0.00023999,4]
[346144010,1734744647748,-1908.27,0.00023999,4]
[346144011,1734744647758,-1908.27,0.00023999,4]
[346144012,1734744647767,-1908.27,0.00023999,4]
[346144013,1734744647777,-1908.27,0.00023999,4]
[346144014,1734744647786,-1908.27,0.00023999,4]
[346144015,1734744647796,-1908.27,0.00023999,4]
[346144016,1734744647839,-1908.27,0.00023999,4]
[346144017,1734744647848,-1908.27,0.00023999,4]
[346144018,1734744647859,-1908.27,0.00023999,4]
[346144019,1734744647869,-1908.27,0.00023999,4]
[346144020,1734744647878,-1908.27,0.00023999,4]
[346144021,1734744647887,-1908.27,0.00023999,4]
[346144022,1734744647896,-1908.366328,0.00023999,4]
[346144023,1734744647905,-708.05,0.00023999,4]
[346144024,1734744647915,-708.05,0.00023999,4]
[346144025,1734744647925,-708.05,0.00023999,4]
[346144026,1734744647935,-708.05,0.00023999,4]
[346144027,1734744647945,-708.05,0.00023999,4]
[346144028,1734744647955,-708.05,0.00023999,4]
[346144029,1734744647964,-708.05,0.00023999,4]
[346144030,1734744647974,-708.05,0.00023999,4]
[346144031,1734744647984,-708.05,0.00023999,4]
[346144032,1734744647993,-708.05,0.00023999,4]
[346144033,1734744648007,-708.05,0.00023999,4]
[346144034,1734744648016,-708.05,0.00023999,4]
[346144035,1734744648026,-708.08667943,0.00023999,4]
[346144036,1734744648036,-434.87,0.00023999,4]
[346144037,1734744648047,-500.0,0.00023999,4]
[346144038,1734744648056,-500.0,0.00023999,4]
[346144039,1734744648066,-500.0,0.00023999,4]
[346144040,1734744648076,-500.0,0.00023999,4]
[346144041,1734744648086,-765.48,0.00023999,4]
[346144042,1734744648099,-500.0,0.00023999,4]
[346144043,1734744648111,-765.48,0.00023999,4]
[346144044,1734744648120,-500.0,0.00023999,4]
[346144045,1734744648131,-500.0,0.00023999,4]
[346144046,1734744648140,-765.48,0.00023999,4]
[346144047,1734744648150,-500.0,0.00023999,4]
[346144048,1734744648160,-765.48,0.00023999,4]
[346144049,1734744648170,-500.0,0.00023999,4]
[346144050,1734744648180,-765.48,0.00023999,4]
[346144051,1734744648190,-500.0,0.00023999,4]
[346144052,1734744648199,-765.48,0.00023999,4]
[346144053,1734744648209,-500.0,0.00023999,4]
[346144054,1734744648218,-765.48,0.00023999,4]
[346144055,1734744648228,-921.23,0.00023999,4]
[346144056,1734744648237,-500.0,0.00023999,4]
[346144057,1734744648247,-765.48,0.00023999,4]
[346144058,1734744648257,-484.30343228,0.00023999,4]
[346144059,1734744648266,-921.23,0.00023999,4]
[346144060,1734744648275,-765.48,0.00023999,4]
[346144061,1734744648284,-921.23,0.00023999,4]
[346144062,1734744648294,-765.48,0.00023999,4]
[346144063,1734744648303,-921.23,0.00023999,4]
[346144064,1734744648313,-765.48,0.00023999,4]
[346144065,1734744648322,-921.23,0.00023999,4]
[346144066,1734744648332,-765.48,0.00023999,4]
[346144067,1734744648342,-921.23,0.00023999,4]
[346144068,1734744648351,-765.52052266,0.00023999,4]
[346144069,1734744648360,-921.23,0.00023999,4]
[346144070,1734744648370,-921.23,0.00023999,4]
[346144071,1734744648379,-921.23,0.00023999,4]
[346144072,1734744648388,-921.23,0.00023999,4]
[346144073,1734744648398,-921.23,0.00023999,4]
[346144074,1734744648407,-921.23,0.00023999,4]
[346144075,1734744648416,-921.37595236,0.00023999,4]
[346144076,1734744648426,-967.74,0.00023999,4]
[346144077,1734744648435,-967.74,0.00023999,4]
[346144078,1734744648444,-967.74,0.00023999,4]
[346144079,1734744648453,-967.74,0.00023999,4]
[346144080,1734744648463,-537.46,0.00023999,4]
[346144081,1734744648472,-967.74,0.00023999,4]
[346144082,1734744648481,-537.46,0.00023999,4]
[346144083,1734744648490,-537.46,0.00023999,4]
[346144084,1734744648499,-967.74,0.00023999,4]
[346144085,1734744648508,-537.46,0.00023999,4]
[346144086,1734744648517,-967.74,0.00023999,4]
[346144087,1734744648526,-537.46,0.00023999,4]
[346144088,1734744648535,-967.74,0.00023999,4]
[346144089,1734744648545,-537.46,0.00023999,4]
[346144090,1734744648554,-967.74,0.00023999,4]
[346144091,1734744648563,-537.46,0.00023999,4]
[346144092,1734744648572,-967.74,0.00023999,4]
[346144093,1734744648582,-967.74,0.00023999,4]
[346144094,1734744648591,-537.46,0.00023999,4]
[346144095,1734744648601,-967.74,0.00023999,4]
[346144096,1734744648610,-537.46,0.00023999,4]
[346144097,1734744648619,-967.89465712,0.00023999,4]
[346144098,1734744648628,-537.46,0.00023999,4]
[346144099,1734744648637,-537.46,0.00023999,4]
[346144100,1734744648646,-537.46,0.00023999,4]
[346144101,1734744648655,-537.48689225,0.00023999,4]
[346144102,1734744648665,-500.43,0.00023999,4]
[346144103,1734744648674,-500.43,0.00023999,4]
[346144104,1734744648683,-500.43,0.00023999,4]
[346144105,1734744648693,-500.43,0.00023999,4]
[346144106,1734744648702,-500.43,0.00023999,4]
[346144107,1734744648712,-500.43,0.00023999,4]
[346144108,1734744648721,-500.43,0.00023999,4]
[346144109,1734744648731,-500.43,0.00023999,4]
[346144110,1734744648740,-500.43,0.00023999,4]
[346144111,1734744648749,-500.43,0.00023999,4]
[346144112,1734744648759,-500.43,0.00023999,4]
[346144113,1734744648768,-712.49,0.00023999,4]
[346144114,1734744648778,-500.43,0.00023999,4]
[346144115,1734744648788,-712.49,0.00023999,4]
[346144116,1734744648798,-500.43344531,0.00023999,4]
[346144117,1734744648808,-712.49,0.00023999,4]
[346144118,1734744648817,-712.49,0.00023999,4]
[346144119,1734744648827,-712.49,0.00023999,4]
[346144120,1734744648836,-712.49,0.00023999,4]
[346144121,1734744648845,-712.49,0.00023999,4]
[346144122,1734744648855,-712.49,0.00023999,4]
[346144123,1734744648865,-712.49,0.00023999,4]
[346144124,1734744648874,-712.49,0.00023999,4]
[346144125,1734744648883,-712.49,0.00023999,4]
[346144126,1734744648893,-712.49,0.00023999,4]
[346144127,1734744648903,-4246.81,0.00023999,2]
[346144128,1734744648912,-712.62957448,0.00023999,4]
[346144129,1734744648921,-4246.81,0.00023999,2]
[346144130,1734744648931,-4246.81,0.00023999,2]
[346144131,1734744648940,-4246.81,0.00023999,2]
[346144132,1734744648949,-4246.81,0.00023999,2]
[346144133,1734744648959,-4246.81,0.00023999,2]
[346144134,1734744648968,-4246.81,0.00023999,2]
[346144135,1734744648978,-4246.81,0.00023999,2]
[346144136,1734744648992,-4246.81,0.00023999,2]
[346144137,1734744649002,-4246.81,0.00023999,2]
[346144138,1734744649011,-4246.81,0.00023999,2]
[346144139,1734744649021,-4246.81,0.00023999,2]
[346144140,1734744649030,-4246.98544134,0.00023999,2]
[346144141,1734744649039,-998.14924011,0.00023999,2]
[346144142,1734744649049,-500.0,0.00023999,4]
[346144143,1734744649058,-500.0,0.00023999,4]
[346144144,1734744649067,-500.0,0.00023999,4]
[346144145,1734744649077,-500.0,0.00023999,4]
[346144146,1734744649088,-500.0,0.00023999,4]
[346144147,1734744649099,-500.0,0.00023999,4]
[346144148,1734744649108,-151.83562025,0.00023999,4]
[346144149,1734744649123,-861.03,0.00023999,4]
[346144150,1734744649133,-861.03,0.00023999,4]
[346144151,1734744649142,-861.03,0.00023999,4]
[346144152,1734744649151,-861.03,0.00023999,4]
[346144153,1734744649162,-861.03,0.00023999,4]
[346144154,1734744649173,-861.03,0.00023999,4]
[346144155,1734744649183,-861.03,0.00023999,4]
[346144156,1734744649193,-861.03,0.00023999,4]
[346144157,1734744649203,-861.03,0.00023999,4]
[346144158,1734744649212,-861.03,0.00023999,4]
[346144159,1734744649222,-861.03,0.00023999,4]
[346144160,1734744649231,-861.03,0.00023999,4]
[346144161,1734744649242,-861.15415611,0.00023999,4]
[346144162,1734744649253,-500.0,0.00023999,4]
[346144163,1734744649262,-500.0,0.00023999,4]
[346144164,1734744649272,-500.0,0.00023999,4]
[346144165,1734744649282,-500.0,0.00023999,4]
[346144166,1734744649291,-243.50610099,0.00023999,4]
[346144167,1734744649301,-500.0,0.00023999,4]
[346144168,1734744649311,-500.0,0.00023999,4]
[346144169,1734744649321,-500.0,0.00023999,4]
[346144170,1734744649331,-500.0,0.00023999,4]
[346144171,1734744649341,-500.0,0.00023999,4]
[346144172,1734744649351,-500.0,0.00023999,4]
[346144173,1734744649362,-228.71435467,0.00023999,4]
[346144174,1734744649372,-921.22,0.00023999,4]
[346144175,1734744649383,-921.22,0.00023999,4]
[346144176,1734744649393,-921.22,0.00023999,4]
[346144177,1734744649403,-921.22,0.00023999,4]
[346144178,1734744649413,-921.22,0.00023999,4]
[346144179,1734744649423,-921.22,0.00023999,4]
[346144180,1734744649433,-921.22,0.00023999,4]
[346144181,1734744649443,-921.22,0.00023999,4]
[346144182,1734744649452,-921.22,0.00023999,4]
[346144183,1734744649462,-921.22,0.00023999,4]
[346144184,1734744649471,-921.22,0.00023999,4]
[346144185,1734744649481,-921.22,0.00023999,4]
[346144186,1734744649490,-921.29801645,0.00023999,4]
[346144187,1734744649501,-500.0,0.00023999,4]
[346144188,1734744649512,-500.0,0.00023999,4]
[346144189,1734744649522,-378.20907627,0.00023999,4]
[346144190,1734744649531,-150.0,0.00023999,2]
[346144191,1734744649542,-150.0,0.00023999,2]
[346144192,1734744649552,-150.0,0.00023999,2]
[346144193,1734744649561,-150.0,0.00023999,2]
[346144194,1734744649570,-150.0,0.00023999,2]
[346144195,1734744649579,-150.0,0.00023999,2]
[346144196,1734744649589,-150.0,0.00023999,2]
[346144197,1734744649598,-241.92577242,0.00023999,2]
[346144198,1734744649608,-500.0,0.00023999,4]
[346144199,1734744649617,-500.0,0.00023999,4]
[346144200,1734744649628,-500.0,0.00023999,4]
[346144201,1734744649639,-500.0,0.00023999,4]
[346144202,1734744649648,-500.0,0.00023999,4]
[346144203,1734744649657,-632.02372102,0.00023999,4]
[346144204,1734744649666,-401.42931723,0.00024,2]
[346144205,1734744649675,-240.85759034,0.00024,2]
[346144206,1734744649685,-160.57172689,0.00024,2]
[346144207,1734744649694,-14129.64406362,0.00024,2]
[346144208,1734744649703,-16579022.41925353,0.00024,5]
[346144209,1734744649713,-50419.52472763,0.00024,2]
[346144210,1734744649722,-15144.08203876,0.00024,2]
[346144211,1734744649731,-11481.23,0.00024,5]
[346144212,1734744649741,-3593.5235663,0.00024,25]
[346144213,1734744649751,-247736.70038136,0.00024,2]
[346144214,1734744649914,-17675.16368487,0.00024,2]
[346144215,1734744649926,-991.06550164,0.00024,2]
[346144216,1734744649937,-1740.1219939,0.00024,2]
[346144217,1734744649948,-785.34100842,0.00024,2]
[346144218,1734744649959,-1196.71796321,0.00024,2]
[346144219,1734744649980,-500.0,0.00023995,4]
[346144220,1734744649990,-1815.71779286,0.00024,2]
[346144221,1734744650002,-380.67641698,0.00024,2]
[346144222,1734744650128,-962.31438989,0.00022385,2]
[346144223,1734744650138,-185.49075724,0.00023898,2]
[346144224,1734744650147,-500.0,0.00023995,4]
[346144225,1734744650158,-500.0,0.00023995,4]
[346144226,1734744650170,-500.0,0.00023995,4]
[346144227,1734744650180,-395.07510558,0.00023995,4]
[346144228,1734744650199,-104.92489442,0.00023995,4]
[346144229,1734744650209,-500.0,0.00023995,4]
[346144230,1734744650219,-36.78617579,0.00023995,4]
[346144231,1734744650230,-250.21281885,0.00023995,4]
[346144232,1734744650242,-213.00100536,0.00023995,4]
[346144233,1734744650251,-500.0,0.00023995,4]
[346144234,1734744650262,-156.89899465,0.00024,2]
[346144235,1734744650273,-17381.7,0.00024,2]
[346144236,1734744650289,-500.0,0.00023995,4]
[346144237,1734744650298,-2697.44996019,0.00024,2]
[346144238,1734744650310,-2996.5,0.00024,2]
[346144239,1734744650322,-976.7,0.00024,2]
[346144240,1734744650437,-305.58717248,0.00023639,4]
[346144241,1734744650446,-534.08779984,0.00023817,4]
[346144242,1734744650455,-153.55371463,0.00023999,4]
[346144243,1734744650465,-12401.24344388,0.00024,2]
[346144244,1734744650476,-2327.09086076,0.00024,2]
[346144245,1734744650488,-2809.51895294,0.00024,2]
[346144246,1734744650497,-38.07373702,0.00024,2]
[346144247,1734744650510,-111.92626298,0.00024,2]
[346144248,1734744650519,-150.0,0.00024,2]
[346144249,1734744650529,-150.0,0.00024,2]
[346144250,1734744650538,-150.0,0.00024,2]
[346144251,1734744650547,-150.0,0.00024,2]
[346144252,1734744650557,-887.93387701,0.00024,30]
[346144253,1734744650639,-203.4286,0.0002354,2]
[346144254,1734744650649,-504.42399149,0.00023817,4]
[346144255,1734744650658,-185.49075723,0.000239,2]
[346144256,1734744650668,-114.81566051,0.00024,30]
[346144257,1734744650767,-397.42607258,0.00024,30]
[346144258,1734744650779,-1470.51803953,0.00024,30]
[346144259,1734744650791,-1051.96977662,0.00024,30]
[346144260,1734744650803,-1109.97733375,0.00024,30]
[346144261,1734744650813,-1717.1631246,0.00024,2]
[346144262,1734744650825,-32385.36831623,0.00024,2]
[346144263,1734744650834,-30172.11475918,0.00024,2]
[346144264,1734744650844,-975.24405875,0.00024,2]
[346144265,1734744650854,-154.58069815,0.00024,3]
[346144266,1734744650864,-210.04419824,0.00024,30]
[346144267,1734744650874,-286888.07230548,0.00024,5]
[346144268,1734744650886,-266.11297236,0.00024,5]
[346144269,1734744650898,-306.1888474,0.00024,5]
[346144270,1734744650910,-1076.24944658,0.00024,5]
[346144271,1734744661763,342.8,0.00023,120]
[346144274,1734744774062,1254.0,0.000235,120]
[346144275,1734744814846,1481.85,0.000235,120]
[346144277,1734744879756,155.2,0.00010137,2]
[346144278,1734744889849,154.645286,0.000216,30]
[346144279,1734744909825,464.36988851,0.00010959,2]
[346144298,1734745746793,158.05,0.00010137,2]
[346144306,1734745831907,-155.2,0.00017184,2]
[346144307,1734745831917,-6800.6951604,0.0002,2]
[346144308,1734745832125,-3043.46146612,0.0002,2]
[346144309,1734745832344,-526.32463108,0.0002,2]
[346144310,1734745832357,-28629.5187424,0.0002,2]
[346144311,1734745832367,-20000.0,0.0002,2]
[346144312,1734745832377,-969.86502778,0.0002,2]
[346144314,1734745832387,-522.41,0.00020759,2]
[346144316,1734745832396,-200.0,0.00022539,2]
[346144318,1734745832406,-1000.0,0.00022554,2]
[346144320,1734745832417,-404.97,0.00022609,2]
[346144322,1734745832430,-190.29529543,0.00022635,2]
[346144324,1734745832443,-315.61470457,0.00022635,2]
[346144326,1734745832453,-1289.37727782,0.00022765,2]
[346144333,1734745838248,-2892.59038022,0.00022765,2]
[346144334,1734745838259,-507.89074886,0.00022765,2]
[346144350,1734745840249,-7989.8915931,0.00022765,2]
[346144351,1734745840259,-150.0,0.00022767,2]
[346144352,1734745840269,-250.0,0.00022778,2]
[346144353,1734745840278,-250.0,0.00022795,2]
[346144354,1734745840287,-364.186,0.000228,2]
[346144355,1734745840297,-364.77,0.000228,2]
[346144356,1734745840306,-502.562,0.00022806,2]
[346144357,1734745840315,-193.89,0.00022808,2]
[346144358,1734745840324,-745.27,0.000229,2]
[346144359,1734745840334,-150.84,0.000229,2]
[346144360,1734745840351,-301.08,0.000229,2]
[346144361,1734745840361,-305.23,0.000229,2]
[346144362,1734745840371,-4786.96417956,0.00023,2]
[346144363,1734745840380,-8132.00662715,0.00023,60]
[346144364,1734745840390,-165.75,0.00023018,2]
[346144365,1734745840400,-522.41,0.00023023,2]
[346144366,1734745840410,-1572.0,0.0002304,6]
[346144367,1734745840420,-785.75,0.00023041,2]
[346144368,1734745840430,-445.99,0.00023041,2]
[346144369,1734745840445,-770.39,0.00023041,2]
[346144370,1734745840455,-302.1,0.00023178,2]
[346144371,1734745840464,-150.0,0.00023178,2]
[346144372,1734745840474,-365.07,0.00023178,2]
[346144373,1734745840484,-994.55,0.00023178,2]
[346144374,1734745840493,-302.75,0.00023178,2]
[346144375,1734745840504,-169.63,0.00023264,2]
[346144376,1734745840514,-3000.0,0.00023288,7]
[346144377,1734745840523,-162.86760816,0.00023342,2]
[346144378,1734745840532,-264.9764,0.000234,2]
[346144379,1734745840541,-3855.1086,0.000234,2]
[346144380,1734745840551,-500.0,0.00023415,7]
[346144381,1734745840561,-2584.0,0.000235,4]
[346144382,1734745840571,-5023.0,0.000235,2]
[346144383,1734745840580,-5000.0,0.000235,2]
[346144384,1734745840590,-5000.0,0.000235,2]
[346144385,1734745840599,-5000.0,0.000235,2]
[346144386,1734745840608,-1000.0,0.00023539,2]
[346144387,1734745840618,-1999.2291,0.0002354,2]
[346144388,1734745840627,-216.0875777,0.00023544,2]
[346144389,1734745840636,-1008.0,0.000236,2]
[346144390,1734745840645,-201.31173768,0.00023639,2]
[346144391,1734745840655,-494.04623037,0.0002364,2]
[346144392,1734745840668,-151.464,0.0002366,2]
[346144393,1734745840677,-522.965,0.0002366,2]
[346144394,1734745840686,-1035.576,0.0002366,2]
[346144395,1734745840695,-500.0,0.00023689,7]
[346144396,1734745840704,-216.0875777,0.00023723,2]
[346144397,1734745840714,-3000.0,0.0002376,2]
[346144398,1734745840723,-845.24403736,0.00023783,2]
[346144399,1734745840732,-845.24403731,0.00023796,2]
[346144400,1734745840741,-670.98,0.000238,2]
[346144401,1734745840751,-1002.7,0.000238,3]
[346144402,1734745840760,-165.10718726,0.000238,2]
[346144403,1734745840769,-5090.0107,0.00023808,2]
[346144404,1734745840778,-500.0,0.00023808,2]
[346144405,1734745840787,-845.24403731,0.00023809,2]
[346144406,1734745840796,-165.10718722,0.00023817,2]
[346144407,1734745840805,-502.24827638,0.00023817,4]
[346144408,1734745840814,-503.63792003,0.00023817,4]
[346144409,1734745840823,-845.24403731,0.00023822,2]
[346144410,1734745840832,-165.10718722,0.00023833,2]
[346144411,1734745840841,-845.24403731,0.00023835,2]
[346144412,1734745840850,-845.24403731,0.00023848,2]
[346144413,1734745840860,-165.10718722,0.0002385,2]
[346144414,1734745840869,-845.24403731,0.00023861,2]
[346144415,1734745840878,-165.10718722,0.00023867,2]
[346144416,1734745840888,-845.24403731,0.00023874,2]
[346144417,1734745840897,-21193.93067779,0.0002388,2]
[346144423,1734745844844,-4675.84480049,0.0002388,2]
[346144424,1734745844854,-165.10718722,0.00023883,2]
[346144425,1734745844864,-153.0,0.00023887,2]